[Event "*** Titled Tuesday Blitz"]
[Site "Chess.com"]
[Date "2021.02.02"]
[Round "6"]
[White "canary2016"]
[Black "KarateBaby"]
[Result "0-1"]
[WhiteElo "2017"]
[BlackElo "2228"]
[TimeControl "180+1"]
[EndTime "11:10:00 PST"]
[Termination "KarateBaby won by checkmate"]

1. d4 {[%clk 0:03:00.9]} 1... Nf6 {[%clk 0:02:59.9]} 2. Bf4 {[%clk 0:03:00.4]}
2... g6 {[%clk 0:02:57.8]} 3. c4 {[%clk 0:02:59.7]} 3... Bg7 {[%clk 0:02:57.9]}
4. e3 {[%clk 0:02:59.7]} 4... O-O {[%clk 0:02:58.5]} 5. Nc3 {[%clk 0:02:59.1]}
5... d6 {[%clk 0:02:58.7]} 6. Nf3 {[%clk 0:02:59.1]} 6... Nbd7 {[%clk
0:02:54.3]} 7. Bd3 {[%clk 0:02:58.9]} 7... Re8 {[%clk 0:02:54.5]} 8. O-O {[%clk
0:02:58.8]} 8... e5 {[%clk 0:02:54]} 9. dxe5 {[%clk 0:02:58.9]} 9... dxe5 {[%clk
0:02:54.9]} 10. Bg5 {[%clk 0:02:52]} 10... h6 {[%clk 0:02:55.3]} 11. Bxf6 {[%clk
0:02:51.4]} 11... Nxf6 {[%clk 0:02:55.9]} 12. Bc2 {[%clk 0:02:50.3]} 12... c6
{[%clk 0:02:52]} 13. Qe2 {[%clk 0:02:47.4]} 13... Qe7 {[%clk 0:02:50]} 14. h3
{[%clk 0:02:46.4]} 14... Nh5 {[%clk 0:02:43.3]} 15. Rfd1 {[%clk 0:02:45.4]}
15... f5 {[%clk 0:02:36.6]} 16. Nd2 {[%clk 0:02:21.8]} 16... Nf6 {[%clk
0:02:21]} 17. Nb3 {[%clk 0:02:17.8]} 17... g5 {[%clk 0:02:18.4]} 18. Rd2 {[%clk
0:01:45.7]} 18... e4 {[%clk 0:02:09.3]} 19. Rad1 {[%clk 0:01:42.8]} 19... Be6
{[%clk 0:02:06.4]} 20. Nd4 {[%clk 0:01:39.9]} 20... a5 {[%clk 0:01:51]} 21. Na4
{[%clk 0:01:30.5]} 21... Rab8 {[%clk 0:01:16.6]} 22. Nxe6 {[%clk 0:01:25.1]}
22... Qxe6 {[%clk 0:01:15.2]} 23. Nc5 {[%clk 0:01:24.7]} 23... Qe7 {[%clk
0:01:12.3]} 24. Nd7 {[%clk 0:01:23.1]} 24... Rbd8 {[%clk 0:01:07.1]} 25. Nxf6+
{[%clk 0:01:22.7]} 25... Qxf6 {[%clk 0:01:08]} 26. Bb3 {[%clk 0:01:20.9]} 26...
c5 {[%clk 0:01:00.5]} 27. Rd5 {[%clk 0:01:18.2]} 27... b6 {[%clk 0:00:57.5]} 28.
Ba4 {[%clk 0:01:15.9]} 28... Rxd5 {[%clk 0:00:53.7]} 29. Rxd5 {[%clk 0:01:12.6]}
29... Re7 {[%clk 0:00:52.3]} 30. Rd2 {[%clk 0:00:48.9]} 30... f4 {[%clk
0:00:51.9]} 31. exf4 {[%clk 0:00:48.1]} 31... gxf4 {[%clk 0:00:52.8]} 32. Qg4
{[%clk 0:00:45.2]} 32... Re5 {[%clk 0:00:45.9]} 33. Qc8+ {[%clk 0:00:39.6]}
33... Kh7 {[%clk 0:00:42.1]} 34. Bc2 {[%clk 0:00:37.2]} 34... f3 {[%clk
0:00:35.5]} 35. Qb7 {[%clk 0:00:30.6]} 35... Qg5 {[%clk 0:00:31.6]} 36. Bxe4+
{[%clk 0:00:27.9]} 36... Kg8 {[%clk 0:00:24.8]} 37. Bd5+ {[%clk 0:00:13.5]}
37... Kh8 {[%clk 0:00:19.2]} 38. Qc8+ {[%clk 0:00:10.7]} 38... Kh7 {[%clk
0:00:18.8]} 39. Qg8+ {[%clk 0:00:07.4]} 39... Kg6 {[%clk 0:00:18.8]} 40. Qf7+
{[%clk 0:00:05.8]} 40... Kh7 {[%clk 0:00:16.3]} 41. Qg8+ {[%clk 0:00:05.2]}
41... Kg6 {[%clk 0:00:16.7]} 42. Bf7+ {[%clk 0:00:04.3]} 42... Kf6 {[%clk
0:00:16.3]} 43. Qd8+ {[%clk 0:00:03.6]} 43... Kxf7 {[%clk 0:00:16.4]} 44. Rd7+
{[%clk 0:00:03.6]} 44... Re7 {[%clk 0:00:16.6]} 45. Rxe7+ {[%clk 0:00:03.2]}
45... Qxe7 {[%clk 0:00:17.5]} 46. Qd5+ {[%clk 0:00:03.3]} 46... Kg6 {[%clk
0:00:15.6]} 47. Qd3+ {[%clk 0:00:03]} 47... Kf7 {[%clk 0:00:14.9]} 48. Qxf3+
{[%clk 0:00:03.1]} 48... Qf6 {[%clk 0:00:15]} 49. Qb7+ {[%clk 0:00:03.2]} 49...
Kg6 {[%clk 0:00:15]} 50. g3 {[%clk 0:00:02.3]} 50... Qxb2 {[%clk 0:00:14.6]} 51.
Qc6+ {[%clk 0:00:02.4]} 51... Qf6 {[%clk 0:00:14.8]} 52. Qc8 {[%clk 0:00:02.4]}
52... Bf8 {[%clk 0:00:14.8]} 53. Qg4+ {[%clk 0:00:02]} 53... Kh7 {[%clk
0:00:15]} 54. Qe4+ {[%clk 0:00:02]} 54... Kh8 {[%clk 0:00:13.8]} 55. Qd5 {[%clk
0:00:02.1]} 55... Bd6 {[%clk 0:00:13.6]} 56. Qa8+ {[%clk 0:00:02]} 56... Kg7
{[%clk 0:00:12.9]} 57. Qb7+ {[%clk 0:00:02.4]} 57... Kg6 {[%clk 0:00:12.1]} 58.
Qe4+ {[%clk 0:00:02.5]} 58... Kf7 {[%clk 0:00:11.1]} 59. Qb7+ {[%clk 0:00:02.7]}
59... Qe7 {[%clk 0:00:10.2]} 60. Qf3+ {[%clk 0:00:02.8]} 60... Ke8 {[%clk
0:00:10.1]} 61. Qa8+ {[%clk 0:00:02.8]} 61... Kd7 {[%clk 0:00:09.4]} 62. Qb7+
{[%clk 0:00:03]} 62... Bc7 {[%clk 0:00:09.3]} 63. Qd5+ {[%clk 0:00:03]} 63...
Qd6 {[%clk 0:00:09.4]} 64. Qf5+ {[%clk 0:00:03.3]} 64... Kc6 {[%clk 0:00:09.2]}
65. Qf3+ {[%clk 0:00:03.2]} 65... Kd7 {[%clk 0:00:09.7]} 66. Qf7+ {[%clk
0:00:03.3]} 66... Kd8 {[%clk 0:00:10.6]} 67. Qg8+ {[%clk 0:00:03.1]} 67... Kd7
{[%clk 0:00:10.4]} 68. Qg7+ {[%clk 0:00:03.6]} 68... Kc8 {[%clk 0:00:11.3]} 69.
Qh7 {[%clk 0:00:03.7]} 69... Kb7 {[%clk 0:00:12.2]} 70. Qxh6 {[%clk 0:00:04.1]}
70... Qxh6 {[%clk 0:00:12.1]} 71. h4 {[%clk 0:00:04.1]} 71... Qd2 {[%clk
0:00:10.7]} 72. Kg2 {[%clk 0:00:05]} 72... Qd4 {[%clk 0:00:09.9]} 73. Kh2 {[%clk
0:00:05.9]} 73... Qxc4 {[%clk 0:00:10.8]} 74. Kg2 {[%clk 0:00:06.8]} 74... Qxa2
{[%clk 0:00:11.5]} 75. Kh2 {[%clk 0:00:07.2]} 75... c4 {[%clk 0:00:12.4]} 76.
Kg2 {[%clk 0:00:08]} 76... c3 {[%clk 0:00:13.3]} 77. Kg1 {[%clk 0:00:08.7]}
77... c2 {[%clk 0:00:14.2]} 78. Kg2 {[%clk 0:00:09.6]} 78... c1=Q {[%clk
0:00:15.1]} 79. Kh3 {[%clk 0:00:10.5]} 79... Qc3 {[%clk 0:00:16]} 80. Kh2 {[%clk
0:00:11.3]} 80... Qxf2+ {[%clk 0:00:16.3]} 81. Kh3 {[%clk 0:00:11.6]} 81...
Qcxg3# {[%clk 0:00:17.2]} 0-1

[Event "*** Titled Tuesday Blitz"]
[Site "Chess.com"]
[Date "2021.02.02"]
[Round "6"]
[White "MVM2008"]
[Black "Al_Shima"]
[Result "0-1"]
[WhiteElo "2109"]
[BlackElo "2290"]
[TimeControl "180+1"]
[EndTime "11:10:01 PST"]
[Termination "Al_Shima won on time"]

1. e4 {[%clk 0:02:01.5]} 1... c5 {[%clk 0:02:55.4]} 2. Nf3 {[%clk 0:02:00.8]}
2... Nc6 {[%clk 0:02:54.3]} 3. d4 {[%clk 0:02:01.7]} 3... cxd4 {[%clk
0:02:54.5]} 4. c3 {[%clk 0:01:57.1]} 4... d3 {[%clk 0:02:51.8]} 5. Bxd3 {[%clk
0:01:56.5]} 5... d6 {[%clk 0:02:51.2]} 6. O-O {[%clk 0:01:52.5]} 6... Nf6 {[%clk
0:02:51.5]} 7. Nd4 {[%clk 0:01:52]} 7... g6 {[%clk 0:02:49]} 8. Nxc6 {[%clk
0:01:51.7]} 8... bxc6 {[%clk 0:02:48.4]} 9. f4 {[%clk 0:01:52.6]} 9... Bg7
{[%clk 0:02:47.2]} 10. e5 {[%clk 0:01:47.2]} 10... Ng4 {[%clk 0:02:38.5]} 11.
Qf3 {[%clk 0:01:29.1]} 11... Qb6+ {[%clk 0:02:28.5]} 12. Kh1 {[%clk 0:01:27.9]}
12... dxe5 {[%clk 0:02:23.2]} 13. h3 {[%clk 0:01:24.6]} 13... h5 {[%clk
0:02:11.7]} 14. Na3 {[%clk 0:01:16.9]} 14... Be6 {[%clk 0:01:48.4]} 15. Nc4
{[%clk 0:01:03.1]} 15... Qc5 {[%clk 0:01:45.7]} 16. Nxe5 {[%clk 0:00:41.2]}
16... Bd5 {[%clk 0:01:21.6]} 17. Qe2 {[%clk 0:00:25.1]} 17... Nxe5 {[%clk
0:00:37.7]} 18. fxe5 {[%clk 0:00:25.2]} 18... Bxe5 {[%clk 0:00:33.7]} 19. Bg5
{[%clk 0:00:15.5]} 19... O-O {[%clk 0:00:24.7]} 20. Rae1 {[%clk 0:00:13.2]}
20... Bd6 {[%clk 0:00:18.8]} 21. Bxe7 {[%clk 0:00:11]} 21... Bxe7 {[%clk
0:00:18.6]} 22. Qxe7 {[%clk 0:00:10.4]} 22... Qxe7 {[%clk 0:00:19.1]} 23. Rxe7
{[%clk 0:00:11.3]} 23... Bxa2 {[%clk 0:00:17.6]} 24. Ra1 {[%clk 0:00:06.4]}
24... Bd5 {[%clk 0:00:17.5]} 25. Raxa7 {[%clk 0:00:06.5]} 25... Rxa7 {[%clk
0:00:17.9]} 26. Rxa7 {[%clk 0:00:07.4]} 26... Rb8 {[%clk 0:00:17.6]} 27. b4
{[%clk 0:00:07.1]} 27... c5 {[%clk 0:00:14.1]} 28. bxc5 {[%clk 0:00:05.2]} 28...
Rb2 {[%clk 0:00:14.6]} 29. Rd7 {[%clk 0:00:03.5]} 29... Bxg2+ {[%clk 0:00:12.5]}
30. Kg1 {[%clk 0:00:02.8]} 30... Bxh3 {[%clk 0:00:12.7]} 31. Rd8+ {[%clk
0:00:03.3]} 31... Kg7 {[%clk 0:00:12.7]} 32. c6 {[%clk 0:00:03.9]} 32... Rb3
{[%clk 0:00:11.1]} 33. Bf1 {[%clk 0:00:01.4]} 33... Bxf1 {[%clk 0:00:08.2]} 34.
Kxf1 {[%clk 0:00:02.3]} 34... Rxc3 {[%clk 0:00:08.6]} 35. Rd6 {[%clk 0:00:02.5]}
35... h4 {[%clk 0:00:08.4]} 36. Kg2 {[%clk 0:00:02.7]} 36... f6 {[%clk
0:00:07.8]} 37. Rd7+ {[%clk 0:00:02.6]} 37... Kh6 {[%clk 0:00:07.6]} 38. c7
{[%clk 0:00:03.5]} 38... g5 {[%clk 0:00:06.9]} 39. Kh2 {[%clk 0:00:03.2]} 39...
Kg6 {[%clk 0:00:07.2]} 40. Kg2 {[%clk 0:00:03.8]} 40... g4 {[%clk 0:00:07.5]}
41. Kf2 {[%clk 0:00:03.9]} 41... Rc2+ {[%clk 0:00:07.8]} 42. Ke3 {[%clk
0:00:04.1]} 42... h3 {[%clk 0:00:08.7]} 43. Kf4 {[%clk 0:00:04.2]} 43... h2
{[%clk 0:00:08.2]} 44. Rd1 {[%clk 0:00:04.1]} 44... f5 {[%clk 0:00:07.6]} 45.
Rd6+ {[%clk 0:00:03.7]} 45... Kh5 {[%clk 0:00:07.2]} 46. Rd8 {[%clk 0:00:03.6]}
46... Kg6 {[%clk 0:00:05.3]} 47. Rh8 {[%clk 0:00:03.7]} 47... Rxc7 {[%clk
0:00:04.8]} 48. Rxh2 {[%clk 0:00:04.2]} 48... Rc4+ {[%clk 0:00:05]} 49. Kg3
{[%clk 0:00:04.2]} 49... Re4 {[%clk 0:00:05.9]} 50. Rd2 {[%clk 0:00:04.3]} 50...
Kg5 {[%clk 0:00:06.8]} 51. Rd5 {[%clk 0:00:04.6]} 51... Re3+ {[%clk 0:00:07.1]}
52. Kf2 {[%clk 0:00:05.1]} 52... Rf3+ {[%clk 0:00:08]} 53. Kg2 {[%clk
0:00:05.4]} 53... Kf4 {[%clk 0:00:08.9]} 54. Rd4+ {[%clk 0:00:05.5]} 54... Kg5
{[%clk 0:00:09.2]} 55. Rd5 {[%clk 0:00:05.9]} 55... Re3 {[%clk 0:00:09.3]} 56.
Kf2 {[%clk 0:00:05.7]} 56... Ra3 {[%clk 0:00:09.8]} 57. Kg2 {[%clk 0:00:05.6]}
57... Ra2+ {[%clk 0:00:10]} 58. Kg3 {[%clk 0:00:05.8]} 58... Ra3+ {[%clk
0:00:10]} 59. Kg2 {[%clk 0:00:06]} 59... g3 {[%clk 0:00:09.5]} 60. Rd4 {[%clk
0:00:03.6]} 60... f4 {[%clk 0:00:09.2]} 61. Rd8 {[%clk 0:00:03.9]} 61... Ra2+
{[%clk 0:00:08.4]} 62. Kg1 {[%clk 0:00:04.4]} 62... Kg4 {[%clk 0:00:08.1]} 63.
Rg8+ {[%clk 0:00:04.5]} 63... Kf3 {[%clk 0:00:08.3]} 0-1

[Event "*** Titled Tuesday Blitz"]
[Site "Chess.com"]
[Date "2021.02.02"]
[Round "6"]
[White "Kostya_Nikologorskiy"]
[Black "SergeyShtyka"]
[Result "1-0"]
[WhiteElo "2695"]
[BlackElo "2479"]
[TimeControl "180+1"]
[EndTime "11:10:02 PST"]
[Termination "Kostya_Nikologorskiy won by resignation"]

1. c4 {[%clk 0:03:00.9]} 1... c5 {[%clk 0:02:59.2]} 2. Nc3 {[%clk 0:03:00.8]}
2... Nc6 {[%clk 0:02:59.4]} 3. g3 {[%clk 0:03:01.4]} 3... g6 {[%clk 0:02:59.8]}
4. Bg2 {[%clk 0:03:02]} 4... Bg7 {[%clk 0:03:00.3]} 5. Nf3 {[%clk 0:03:02.5]}
5... e5 {[%clk 0:02:59.7]} 6. O-O {[%clk 0:03:02.6]} 6... Nge7 {[%clk
0:03:00.1]} 7. d3 {[%clk 0:03:01.8]} 7... O-O {[%clk 0:03:00.3]} 8. Ne1 {[%clk
0:03:02.3]} 8... d6 {[%clk 0:03:00.1]} 9. Nc2 {[%clk 0:03:02.7]} 9... Be6 {[%clk
0:02:59.8]} 10. Ne3 {[%clk 0:03:02.9]} 10... Qd7 {[%clk 0:02:59.4]} 11. Ned5
{[%clk 0:02:46.4]} 11... Bh3 {[%clk 0:02:56.9]} 12. Ne4 {[%clk 0:02:27.4]} 12...
Nxd5 {[%clk 0:02:47.6]} 13. cxd5 {[%clk 0:02:26.7]} 13... Ne7 {[%clk 0:02:47.9]}
14. Bxh3 {[%clk 0:02:13.9]} 14... Qxh3 {[%clk 0:02:46.8]} 15. Nxd6 {[%clk
0:02:14.5]} 15... Qd7 {[%clk 0:02:24.7]} 16. Ne4 {[%clk 0:02:12.4]} 16... Qxd5
{[%clk 0:02:23.2]} 17. Bh6 {[%clk 0:02:12.5]} 17... c4 {[%clk 0:02:13]} 18. Bxg7
{[%clk 0:01:50]} 18... Kxg7 {[%clk 0:02:11.8]} 19. Nc3 {[%clk 0:01:50.6]} 19...
Qc6 {[%clk 0:02:09.6]} 20. dxc4 {[%clk 0:01:48.2]} 20... Qxc4 {[%clk 0:02:09.5]}
21. Qd7 {[%clk 0:01:46.8]} 21... Nf5 {[%clk 0:01:47.1]} 22. Rfd1 {[%clk
0:01:18.7]} 22... Nd4 {[%clk 0:01:31.1]} 23. e3 {[%clk 0:01:13.2]} 23... Ne2+
{[%clk 0:01:04.6]} 24. Nxe2 {[%clk 0:01:12.1]} 24... Qxe2 {[%clk 0:01:05.1]} 25.
Rd2 {[%clk 0:01:07.6]} 25... Qa6 {[%clk 0:01:03.9]} 26. Qc7 {[%clk 0:00:59.3]}
26... Rae8 {[%clk 0:00:55.5]} 27. Rd7 {[%clk 0:00:56.1]} 27... b5 {[%clk
0:00:29.9]} 28. Qxa7 {[%clk 0:00:51.1]} 28... Qe6 {[%clk 0:00:30.4]} 29. Rc7
{[%clk 0:00:28.9]} 29... Ra8 {[%clk 0:00:29.8]} 30. Qc5 {[%clk 0:00:28.8]} 30...
b4 {[%clk 0:00:19.8]} 31. Re7 {[%clk 0:00:22.4]} 31... Qf6 {[%clk 0:00:13.7]}
32. Qxe5 {[%clk 0:00:22]} 32... Qxe5 {[%clk 0:00:12.2]} 33. Rxe5 {[%clk
0:00:22.9]} 33... Ra4 {[%clk 0:00:11.8]} 34. Rb5 {[%clk 0:00:21.9]} 34... Rfa8
{[%clk 0:00:11.6]} 35. b3 {[%clk 0:00:21.1]} 35... Rxa2 {[%clk 0:00:10.9]} 36.
Rxa2 {[%clk 0:00:22]} 36... Rxa2 {[%clk 0:00:11.4]} 37. Rxb4 {[%clk 0:00:22.7]}
37... h5 {[%clk 0:00:10]} 38. h4 {[%clk 0:00:21.7]} 38... Kf6 {[%clk 0:00:10.3]}
39. Kg2 {[%clk 0:00:22.2]} 39... Rb2 {[%clk 0:00:10]} 40. Kf3 {[%clk 0:00:20.9]}
40... Kf5 {[%clk 0:00:10.2]} 41. Rb5+ {[%clk 0:00:21]} 41... Kf6 {[%clk
0:00:10.7]} 42. e4 {[%clk 0:00:20.3]} 42... Ke6 {[%clk 0:00:10.7]} 43. Ke3
{[%clk 0:00:20.6]} 43... Rb1 {[%clk 0:00:09.9]} 44. f3 {[%clk 0:00:20.6]} 44...
Rg1 {[%clk 0:00:08.2]} 45. Kf4 {[%clk 0:00:20.8]} 45... Rb1 {[%clk 0:00:07.8]}
46. Rb6+ {[%clk 0:00:20.8]} 46... Ke7 {[%clk 0:00:08.4]} 47. b4 {[%clk
0:00:21.1]} 47... Rb3 {[%clk 0:00:08.1]} 48. b5 {[%clk 0:00:21.5]} 48... Rb4
{[%clk 0:00:07.7]} 49. Rb7+ {[%clk 0:00:21.9]} 49... Kf6 {[%clk 0:00:07.7]} 50.
b6 {[%clk 0:00:22]} 50... Ke6 {[%clk 0:00:06.2]} 51. Rb8 {[%clk 0:00:21.6]}
51... Rb5 {[%clk 0:00:04.4]} 52. g4 {[%clk 0:00:20.4]} 52... hxg4 {[%clk
0:00:03.2]} 53. Kxg4 {[%clk 0:00:20.8]} 53... Kf6 {[%clk 0:00:04.1]} 54. f4
{[%clk 0:00:20.6]} 54... Rb4 {[%clk 0:00:04.2]} 55. e5+ {[%clk 0:00:20.3]} 55...
Kg7 {[%clk 0:00:04.7]} 56. b7 {[%clk 0:00:20.2]} 56... Rb5 {[%clk 0:00:04.3]}
57. h5 {[%clk 0:00:20.5]} 57... gxh5+ {[%clk 0:00:04.1]} 58. Kxh5 {[%clk
0:00:21.4]} 58... Rb6 {[%clk 0:00:04.2]} 59. Kg4 {[%clk 0:00:20.5]} 59... Rb3
{[%clk 0:00:03.9]} 60. f5 {[%clk 0:00:20.3]} 60... Rb4+ {[%clk 0:00:03.5]} 61.
Kg5 {[%clk 0:00:20.4]} 61... Rb1 {[%clk 0:00:02.6]} 62. f6+ {[%clk 0:00:20.5]}
62... Kh7 {[%clk 0:00:03.1]} 63. Kf5 {[%clk 0:00:19.8]} 63... Rf1+ {[%clk
0:00:03.1]} 64. Ke4 {[%clk 0:00:20]} 64... Re1+ {[%clk 0:00:03.6]} 65. Kd3
{[%clk 0:00:19.7]} 65... Rb1 {[%clk 0:00:04.5]} 66. e6 {[%clk 0:00:18.4]} 66...
Kg6 {[%clk 0:00:03.8]} 67. e7 {[%clk 0:00:17.1]} 67... Rd1+ {[%clk 0:00:03.4]}
68. Kc2 {[%clk 0:00:16.8]} 68... Re1 {[%clk 0:00:03.5]} 69. e8=Q {[%clk
0:00:17.1]} 1-0

[Event "*** Titled Tuesday Blitz"]
[Site "Chess.com"]
[Date "2021.02.02"]
[Round "6"]
[White "Taktikmonster"]
[Black "JQuiroga18"]
[Result "0-1"]
[WhiteElo "2292"]
[BlackElo "2442"]
[TimeControl "180+1"]
[EndTime "11:10:02 PST"]
[Termination "JQuiroga18 won by checkmate"]

1. e4 {[%clk 0:03:00.9]} 1... e5 {[%clk 0:02:58.9]} 2. Nf3 {[%clk 0:03:00.1]}
2... Nc6 {[%clk 0:02:58.9]} 3. Bc4 {[%clk 0:03:00.7]} 3... Nf6 {[%clk
0:02:58.5]} 4. d3 {[%clk 0:02:59.4]} 4... Bc5 {[%clk 0:02:58.3]} 5. c3 {[%clk
0:02:59.7]} 5... O-O {[%clk 0:02:57.8]} 6. O-O {[%clk 0:02:59.6]} 6... d6 {[%clk
0:02:58]} 7. b4 {[%clk 0:02:57.3]} 7... Bb6 {[%clk 0:02:58]} 8. a4 {[%clk
0:02:57.4]} 8... a5 {[%clk 0:02:57.8]} 9. b5 {[%clk 0:02:57.4]} 9... Ne7 {[%clk
0:02:57.9]} 10. Bg5 {[%clk 0:02:57.5]} 10... Ng6 {[%clk 0:02:56.9]} 11. Qb3
{[%clk 0:02:54.3]} 11... h6 {[%clk 0:02:55.7]} 12. Nh4 {[%clk 0:02:43.5]} 12...
Nxh4 {[%clk 0:02:48.9]} 13. Bxh4 {[%clk 0:02:44.4]} 13... g5 {[%clk 0:02:48.7]}
14. Bg3 {[%clk 0:02:41.7]} 14... Nh5 {[%clk 0:02:48.8]} 15. Nd2 {[%clk
0:02:37.3]} 15... Qe7 {[%clk 0:02:44.3]} 16. Kh1 {[%clk 0:02:15.3]} 16... Kh8
{[%clk 0:02:30.9]} 17. Rae1 {[%clk 0:02:01.4]} 17... Be6 {[%clk 0:02:20]} 18.
Nf3 {[%clk 0:01:47.3]} 18... Ng7 {[%clk 0:01:51.1]} 19. d4 {[%clk 0:01:42.6]}
19... f6 {[%clk 0:01:48.4]} 20. Bd5 {[%clk 0:01:06.3]} 20... Rae8 {[%clk
0:01:40.3]} 21. h4 {[%clk 0:01:03.9]} 21... Nh5 {[%clk 0:00:46.6]} 22. Bxe6
{[%clk 0:00:49]} 22... Qxe6 {[%clk 0:00:44.9]} 23. Qxe6 {[%clk 0:00:49.9]} 23...
Rxe6 {[%clk 0:00:44.9]} 24. dxe5 {[%clk 0:00:28]} 24... fxe5 {[%clk 0:00:27.4]}
25. Nh2 {[%clk 0:00:25.1]} 25... Nxg3+ {[%clk 0:00:19.5]} 26. fxg3 {[%clk
0:00:23.9]} 26... Ref6 {[%clk 0:00:19.6]} 27. hxg5 {[%clk 0:00:18.3]} 27... hxg5
{[%clk 0:00:18.3]} 28. Rxf6 {[%clk 0:00:18]} 28... Rxf6 {[%clk 0:00:19.2]} 29.
Rg1 {[%clk 0:00:18.6]} 29... Bxg1 {[%clk 0:00:17.7]} 30. Kxg1 {[%clk 0:00:19.5]}
30... Kg7 {[%clk 0:00:16.9]} 31. Ng4 {[%clk 0:00:19.1]} 31... Rf8 {[%clk
0:00:17]} 32. Ne3 {[%clk 0:00:19]} 32... Kf7 {[%clk 0:00:17.1]} 33. Nd5 {[%clk
0:00:16.9]} 33... c6 {[%clk 0:00:17]} 34. bxc6 {[%clk 0:00:13.7]} 34... bxc6
{[%clk 0:00:17.9]} 35. Nb6 {[%clk 0:00:12.8]} 35... Rb8 {[%clk 0:00:17.1]} 36.
Nc4 {[%clk 0:00:13.2]} 36... Ke6 {[%clk 0:00:16.8]} 37. Nxa5 {[%clk 0:00:12.8]}
37... c5 {[%clk 0:00:17]} 38. Kf2 {[%clk 0:00:06.1]} 38... Ra8 {[%clk
0:00:16.8]} 39. Nb3 {[%clk 0:00:01.6]} 39... Rxa4 {[%clk 0:00:16.8]} 40. Ke3
{[%clk 0:00:02.5]} 40... Ra3 {[%clk 0:00:16.7]} 41. Nd2 {[%clk 0:00:01.5]} 41...
Rxc3+ {[%clk 0:00:17.1]} 42. Ke2 {[%clk 0:00:02.4]} 42... Rxg3 {[%clk
0:00:17.1]} 43. Kf2 {[%clk 0:00:02.8]} 43... Ra3 {[%clk 0:00:17.1]} 44. Nf3
{[%clk 0:00:03.3]} 44... g4 {[%clk 0:00:16.8]} 45. Ng5+ {[%clk 0:00:03.2]} 45...
Kf6 {[%clk 0:00:17.2]} 46. Nh7+ {[%clk 0:00:03.6]} 46... Kg7 {[%clk 0:00:16.3]}
47. Nf8 {[%clk 0:00:04.1]} 47... c4 {[%clk 0:00:15.9]} 48. Ne6+ {[%clk
0:00:03.5]} 48... Kf6 {[%clk 0:00:16.2]} 49. Nc7 {[%clk 0:00:03.2]} 49... c3
{[%clk 0:00:15.9]} 50. Nd5+ {[%clk 0:00:03.7]} 50... Kg5 {[%clk 0:00:16.1]} 51.
Ke2 {[%clk 0:00:04.6]} 51... c2 {[%clk 0:00:16.1]} 52. Kd2 {[%clk 0:00:04.8]}
52... Ra2 {[%clk 0:00:16.4]} 53. Kc1 {[%clk 0:00:02.4]} 53... Kh4 {[%clk
0:00:16.1]} 54. Ne3 {[%clk 0:00:02.2]} 54... Kg3 {[%clk 0:00:15.3]} 55. Nf5+
{[%clk 0:00:02.3]} 55... Kxg2 {[%clk 0:00:15.1]} 56. Nxd6 {[%clk 0:00:03.2]}
56... Kf3 {[%clk 0:00:14.3]} 57. Nc4 {[%clk 0:00:04]} 57... g3 {[%clk
0:00:12.9]} 58. Ne3 {[%clk 0:00:03.5]} 58... g2 {[%clk 0:00:11.9]} 59. Nxg2
{[%clk 0:00:01.5]} 59... Ra1+ {[%clk 0:00:12.3]} 60. Kd2 {[%clk 0:00:02.4]}
60... Kxg2 {[%clk 0:00:12.6]} 61. Kxc2 {[%clk 0:00:03]} 61... Re1 {[%clk
0:00:12.8]} 62. Kd3 {[%clk 0:00:03.9]} 62... Kf3 {[%clk 0:00:12.8]} 63. Kd2
{[%clk 0:00:04.8]} 63... Rxe4 {[%clk 0:00:13.3]} 64. Kd3 {[%clk 0:00:04.8]}
64... Rd4+ {[%clk 0:00:13.5]} 65. Kc2 {[%clk 0:00:04.9]} 65... Rd7 {[%clk
0:00:13.6]} 66. Kc3 {[%clk 0:00:05.8]} 66... e4 {[%clk 0:00:14.1]} 67. Kc2
{[%clk 0:00:06.7]} 67... e3 {[%clk 0:00:14.8]} 68. Kc3 {[%clk 0:00:07.6]} 68...
e2 {[%clk 0:00:15.4]} 69. Kb3 {[%clk 0:00:08.5]} 69... e1=Q {[%clk 0:00:15.6]}
70. Ka2 {[%clk 0:00:09.4]} 70... Qd2+ {[%clk 0:00:15.2]} 71. Kb3 {[%clk
0:00:10.3]} 71... Qd3+ {[%clk 0:00:15.3]} 72. Kb4 {[%clk 0:00:10.5]} 72... Rb7+
{[%clk 0:00:15.7]} 73. Ka5 {[%clk 0:00:11.4]} 73... Rb5+ {[%clk 0:00:15.9]} 74.
Ka6 {[%clk 0:00:11.6]} 74... Rc5+ {[%clk 0:00:13.8]} 75. Ka7 {[%clk 0:00:12.5]}
75... Qa3+ {[%clk 0:00:13.5]} 76. Kb6 {[%clk 0:00:12.7]} 76... Qb4+ {[%clk
0:00:14.1]} 77. Ka7 {[%clk 0:00:13]} 77... Ra5# {[%clk 0:00:15]} 0-1